bitfinex-derivatives/quotes_ETHF0:USTF0_20250906
["timestamp","ask_amount","ask_price","bid_price","bid_amount"]
[1757197771519,0.83565926,4278.1,4278.0,0.9364]
[1757197772613,0.83570346,4278.1,4278.0,0.9364]
[1757197787652,0.12770346,4278.1,4278.0,1.0524]
[1757197788051,0.42660346,4278.1,4278.0,1.0524]
[1757197789955,0.62040346,4278.1,4278.0,1.0524]
[1757197791457,0.62040346,4278.1,4278.0,0.9364]
[1757197791956,0.82600346,4278.1,4278.0,0.9364]
[1757197794459,0.82609783,4278.1,4278.0,0.9364]
[1757197801065,0.82609783,4278.1,4278.0,0.6414]
[1757197801463,0.7047,4277.8,4277.7,0.2114]
[1757197801666,0.83249783,4277.8,4277.7,0.4464]
[1757197803760,0.83249783,4277.8,4277.7,0.235]
[1757197804157,0.7047,4277.8,4277.7,0.235]
[1757197805070,0.83245253,4277.8,4277.7,0.235]
[1757197805367,0.7047,4277.8,4277.7,0.235]
[1757197805866,0.3994,4277.8,4277.5,3.2078]
[1757197806062,0.8317,4277.5,4277.4,0.21600994]
[1757197806264,0.8317,4277.5,4277.4,0.45100994]
[1757197808268,0.8317,4277.5,4277.4,0.21600994]
[1757197808466,0.8317,4277.5,4277.4,0.97740994]
[1757197819278,0.4991,4277.5,4277.4,0.97740994]
[1757197819668,0.2925,4277.9,4277.8,0.4136]
[1757197819871,3.2078,4278.1,4278.0,0.118]
[1757197820273,3.2078,4278.1,4278.0,0.8248]
[1757197820572,0.2925,4278.3,4278.0,0.8248]
[1757197820776,0.8016,4278.5,4278.4,0.4998]
[1757197821073,0.58839941,4278.5,4278.4,0.9418]
[1757197821273,0.2925,4278.7,4278.6,0.7068]
[1757197821479,0.42004085,4278.7,4278.6,0.7068]
[1757197821873,0.12754085,4278.7,4278.6,0.7068]
[1757197822083,3.2078,4278.8,4278.6,0.4136]
[1757197822378,3.2078,4278.8,4278.7,0.7068]
[1757197822578,3.62779704,4278.8,4278.7,0.7068]
[1757197822780,3.33529704,4278.8,4278.7,0.7068]
[1757197823176,3.2078,4278.8,4278.7,0.7068]
[1757197823976,3.5003,4278.8,4278.7,0.7068]
[1757197824484,3.2078,4278.8,4278.7,0.7068]
[1757197826378,0.2925,4279.4,4278.8,0.2932]
[1757197826581,0.4886,4279.0,4278.9,0.9418]
[1757197828887,0.6839,4279.0,4278.9,0.9418]
[1757197829987,0.4886,4279.0,4278.9,0.9418]
[1757197833277,0.6839,4279.0,4278.9,0.9418]
[1757197833482,0.8045,4279.0,4278.9,0.9418]
[1757197839387,0.6839,4279.0,4278.9,0.9418]
[1757197846790,0.8045,4279.0,4278.9,0.9418]
[1757197848595,0.512,4279.0,4278.6,3.2078]
[1757197848793,0.3914,4278.8,4278.7,0.4416]
[1757197848998,0.6839,4278.8,4278.7,0.7348]
[1757197849189,0.6839,4278.8,4278.7,0.9418]
[1757197862414,0.6839,4278.8,4278.7,0.4416]
[1757197863215,0.6839,4278.8,4278.7,0.7621]
[1757197863615,0.6839,4278.8,4278.7,0.9593]
[1757197863811,0.6839,4278.8,4278.7,0.7243]
[1757197864011,0.6839,4278.8,4278.7,0.6388]
[1757197864614,0.6839,4278.8,4278.7,0.9593]
[1757197866314,0.7042,4279.4,4279.3,0.1984]
[1757197866610,1.42187978,4279.4,4279.3,0.9511]
[1757197866909,0.12829078,4279.4,4279.3,0.9511]
[1757197867111,0.5059,4279.9,4279.8,0.1984]
[1757197867315,1.42177989,4279.9,4279.8,0.7539]
[1757197867908,1.42177989,4279.9,4279.8,0.9511]
[1757197869113,1.42177989,4279.9,4279.8,1.13661284]
[1757197869314,0.83246836,4279.9,4279.8,1.13661284]
[1757197869913,0.83246836,4279.9,4279.8,0.9511]
[1757197873114,0.7042,4279.9,4279.8,0.9511]
[1757197873821,0.83223019,4279.9,4279.8,0.9511]
[1757197874018,0.83223019,4279.9,4279.8,0.235]
[1757197874419,0.52703019,4279.9,4279.5,0.51261802]
[1757197874623,0.7042,4279.7,4279.6,0.4324]
[1757197874922,0.7042,4279.7,4279.6,0.1984]
[1757197875124,0.7042,4279.7,4279.6,0.4324]
[1757197877824,0.7042,4279.7,4279.6,0.1984]
[1757197878124,0.7042,4279.7,4279.6,0.4324]
[1757197879027,0.7042,4279.7,4279.6,0.7229]
[1757197880824,0.7042,4279.7,4279.6,0.4324]
[1757197881528,0.7042,4279.7,4279.6,0.7229]
[1757197882428,0.7042,4279.7,4279.6,0.4324]
[1757197884339,0.7042,4279.7,4279.6,0.9192]
[1757197888932,0.7042,4279.7,4279.6,0.4324]
[1757197891339,0.7042,4279.7,4279.6,0.1984]
[1757197891538,0.7042,4279.7,4279.6,0.4324]
[1757197895338,0.7042,4279.7,4279.6,0.9192]
[1757197895537,0.3045,4279.9,4279.6,0.6287]
[1757197895735,0.3045,4280.0,4279.7,0.4006]
[1757197895930,0.1281663,4279.9,4279.8,3.8989]
[1757197898536,0.6290663,4279.9,4279.8,3.8989]
[1757197900639,0.8389663,4279.9,4279.8,3.8989]
[1757197901145,0.8389663,4279.9,4279.8,4.1329]
[1757197906847,0.8389663,4279.9,4279.8,3.4121]
[1757197907042,0.8389663,4279.9,4279.8,0.234]
[1757197912850,0.8389663,4279.9,4279.8,0.429]
[1757197913052,0.8389663,4279.9,4279.8,0.7257]
[1757197914447,0.8389663,4279.9,4279.8,0.9265]
[1757197917455,0.8389663,4279.9,4279.8,0.6925]
[1757197917955,0.8389663,4279.9,4279.8,0.9265]
[1757197918456,0.8389663,4279.9,4279.8,0.6925]
[1757197918657,0.8389663,4279.9,4279.8,0.9265]
[1757197919255,0.8389663,4279.9,4279.8,0.6298]
[1757197919457,0.8389663,4279.9,4279.8,0.3958]
[1757197919861,0.8389663,4279.9,4279.8,0.6298]
[1757197920459,0.8389663,4279.9,4279.8,0.6925]
[1757197920661,0.8389663,4279.9,4279.8,0.9265]
[1757197920861,0.8389663,4279.9,4279.8,0.6925]
[1757197921162,0.8389663,4279.9,4279.8,0.9265]
[1757197923065,0.8389663,4279.9,4279.8,0.429]
[1757197925274,0.8389663,4279.9,4279.8,0.234]
[1757197926471,1.42514793,4279.9,4279.8,0.234]
[1757197926672,1.29698163,4279.9,4279.8,0.234]
[1757197926872,1.42520219,4279.9,4279.8,0.234]
[1757197930377,1.42520954,4279.9,4279.8,0.234]
[1757197931179,1.29698163,4279.9,4279.8,0.234]
[1757197932278,1.42521186,4279.9,4279.5,0.2967]
[1757197932478,0.7149,4279.7,4279.6,0.234]
[1757197935078,0.84314275,4279.7,4279.6,0.234]
[1757197936680,0.84314275,4279.7,4279.6,0.429]
[1757197940082,0.84314275,4279.7,4279.1,3.2078]
[1757197940287,0.1287,4279.5,4278.7,33.885]
[1757197940482,0.7478,4278.8,4278.7,33.651]
[1757197940686,0.87604275,4278.8,4278.7,33.885]
[1757197941178,0.7478,4278.8,4278.7,33.885]
[1757197942175,0.7478,4278.8,4278.7,33.651]
[1757197942375,0.7478,4278.8,4278.7,34.1779]
[1757197942580,0.7478,4278.8,4278.7,33.885]
[1757197945586,0.1287,4278.0,4277.5,3.2078]
[1757197945787,0.7478,4277.6,4277.5,3.9188]
[1757197946087,0.3194,4277.6,4277.5,4.1528]
[1757197946389,0.3194,4277.6,4277.5,4.2713]
[1757197947888,0.5336,4277.6,4277.5,0.945]
[1757197948191,0.7478,4277.6,4277.5,0.945]
[1757197959703,0.1287,4277.5,4277.4,0.00460994]
[1757197960004,0.8765,4277.5,4277.4,0.94960994]
[1757197960198,0.8765,4277.5,4277.4,0.42270994]
[1757197960503,0.8765,4277.5,4277.4,0.00460994]
[1757197960705,0.8765,4277.5,4277.4,0.23860994]
[1757197961705,0.8765,4277.5,4277.4,0.44800994]
[1757197964704,0.8765,4277.5,4277.4,0.21400994]
[1757197964906,0.8765,4277.5,4277.4,0.44800994]
[1757197965105,0.8765,4277.5,4277.4,0.23860994]
[1757197965305,0.8765,4277.5,4277.4,0.44800994]
[1757197966898,0.8765,4277.5,4277.4,0.00460994]
[1757197967100,0.8765,4277.5,4277.4,0.23860994]
[1757197967604,0.8765,4277.5,4277.4,0.00460994]
[1757197967799,0.8765,4277.5,4277.4,0.23860994]
[1757197968101,0.8765,4277.5,4277.4,0.00460994]
[1757197968307,0.8765,4277.5,4277.4,0.23860994]
[1757197969096,0.8765,4277.5,4277.4,0.00460994]
[1757197969302,1.00436064,4277.5,4277.4,0.00460994]
[1757197973607,0.5219,4277.0,4276.9,0.234]
[1757197973806,0.8175,4277.0,4276.9,0.234]
[1757197974207,0.64994586,4277.0,4276.4,3.5247]
[1757197974408,0.3984,4276.6,4276.5,0.9741]
[1757197974609,0.694,4276.6,4276.5,0.9741]
[1757197975910,0.694,4276.6,4276.5,0.7401]
[1757197976112,0.694,4276.6,4276.5,0.9741]
[1757197980109,0.694,4276.6,4276.5,0.7401]
[1757197980304,0.694,4276.6,4276.5,0.9741]
[1757197980910,0.694,4276.6,4276.5,0.7401]
[1757197981212,0.694,4276.6,4276.5,0.9741]
[1757197985719,0.2956,4277.2,4276.5,0.7788]
[1757197986020,0.4893,4277.2,4277.1,0.7401]
[1757197986213,0.6173542,4277.2,4277.1,0.9741]
[1757197987418,0.3984,4276.5,4276.4,0.5272]
[1757197987620,0.694,4276.5,4276.4,0.7401]
[1757197990325,0.8175,4276.5,4276.4,0.7401]
[1757197990914,0.8175,4276.5,4275.9,36.8758]
[1757197991226,0.4893,4276.0,4275.9,37.1927]
[1757197991430,0.4893,4276.0,4275.9,37.4267]
[1757197991629,0.2956,4276.0,4275.9,37.4267]
[1757197992124,0.2956,4276.0,4275.9,37.1927]
[1757197992320,0.2956,4276.0,4275.9,37.4267]
[1757197993430,0.8175,4276.5,4276.4,0.2103]
[1757197993626,0.8175,4276.5,4276.4,0.7612]
[1757197994723,0.94559982,4276.5,4276.4,0.7612]
[1757198000129,0.94559982,4276.5,4276.4,0.9671]
[1757198000529,0.12809982,4276.5,4276.4,0.9671]
[1757198000830,4.9168,4277.4,4277.3,0.7286]
[1757198000831,5.4194,4277.4,4277.3,0.7286]
[1757198001030,6.13302493,4277.4,4277.3,0.7286]
[1757198001926,6.33282493,4277.4,4277.2,0.234]
[1757198002137,1.41602493,4277.3,4277.2,0.7567]
[1757198002432,1.41602493,4277.3,4277.2,0.9626]
[1757198003730,0.71372423,4277.3,4277.2,0.9626]
[1757198003937,1.01362423,4277.3,4277.2,0.9626]
[1757198004134,1.21632423,4277.3,4277.2,0.9626]
[1757198005934,1.21634101,4277.3,4277.2,0.9626]
[1757198007524,1.41614101,4277.3,4277.2,0.6464]
[1757198008031,1.41614101,4277.3,4277.2,0.9626]
[1757198011438,1.41614101,4277.3,4277.2,0.6464]
[1757198011634,1.41614101,4277.3,4277.2,0.4405]
[1757198012637,1.41614101,4277.3,4276.5,0.1201]
[1757198012838,0.4025,4276.7,4276.6,0.9626]
[1757198013039,0.7024,4276.7,4276.6,0.9626]
[1757198013535,0.7024,4276.7,4276.6,0.7286]
[1757198013836,0.7024,4276.7,4276.6,0.9626]
[1757198015041,0.5026,4276.7,4276.6,0.9626]
[1757198019446,0.7024,4276.7,4276.6,0.9626]
[1757198021345,0.8271,4276.5,4276.4,0.3162]
[1757198021549,0.8271,4276.5,4276.4,0.234]
[1757198022143,0.8271,4276.5,4276.4,0.4405]
[1757198026258,0.9550631,4276.5,4276.4,0.4405]
[1757198026459,0.9550631,4276.5,4276.4,0.234]
[1757198026757,0.9550631,4276.5,4276.0,3.2078]
[1757198026758,0.2999,4276.4,4276.0,3.2078]
[1757198026958,0.7024,4276.4,4276.3,0.235]
[1757198027157,0.2999,4276.3,4276.0,3.2078]
[1757198027350,0.7024,4276.1,4276.0,3.4143]
[1757198027547,0.7024,4276.1,4276.0,3.6493]
[1757198027752,0.7024,4276.1,4276.0,3.7305]
[1757198027952,0.83029004,4276.1,4276.0,3.9655]
[1757198029457,0.83029004,4276.1,4276.0,4.1714]
[1757198029963,0.12789004,4276.1,4276.0,4.2942]
[1757198030364,0.3189,4276.4,4276.1,0.3046]
[1757198030660,0.5336,4276.4,4276.3,0.7082]
[1757198030868,0.6614596,4276.4,4276.3,0.7082]
[1757198031059,0.6614596,4276.4,4276.3,0.9432]
[1757198035263,0.1278596,4276.4,4276.3,0.9432]
[1757198035469,0.4467596,4276.4,4276.3,0.9432]
[1757198035966,0.6614596,4276.4,4276.3,0.9432]
[1757198037570,0.8579596,4276.4,4276.3,0.9432]
[1757198040972,0.85707486,4276.4,4276.3,0.9432]
[1757198042870,0.66057486,4276.4,4276.3,0.9432]
[1757198043674,0.44587486,4276.4,4276.3,0.9432]
[1757198043881,0.12697486,4276.4,4276.3,0.9432]
[1757198044479,0.44587486,4276.4,4276.3,0.9432]
[1757198044871,0.66057486,4276.4,4276.3,0.9432]
[1757198049878,0.44587486,4276.4,4276.3,0.9432]
[1757198050880,0.66057486,4276.4,4276.3,0.9432]
[1757198051080,1.44284409,4276.4,4276.3,0.9432]
[1757198055076,0.71274409,4276.4,4276.3,1.17704]
[1757198055277,0.3189,4276.7,4276.6,0.7082]
[1757198055481,0.3189,4276.7,4276.6,0.9422]
[1757198056391,0.5336,4276.7,4276.6,0.9422]
[1757198056890,0.6616083,4276.7,4276.6,0.9422]
[1757198057291,0.8581083,4276.7,4276.6,0.9422]
[1757198057493,0.7301,4276.7,4276.6,0.9422]
[1757198058595,0.7301,4276.7,4276.3,0.3046]
[1757198058786,0.8535,4276.5,4276.4,0.4409]
[1757198059285,0.8535,4276.5,4276.4,0.2069]
[1757198059492,0.8535,4276.5,4276.4,0.4419]
[1757198059990,0.98143728,4276.5,4276.4,0.4419]
[1757198060985,0.9814359,4276.5,4276.4,0.4419]
[1757198061490,0.9814359,4276.5,4276.4,0.7476]
[1757198065796,0.9814359,4276.5,4276.4,0.962]
[1757198067088,0.1279359,4276.5,4276.4,0.962]
[1757198067283,0.4318359,4276.5,4276.4,0.962]
[1757198067487,0.6380359,4276.5,4276.4,0.962]
[1757198076397,0.9601359,4276.5,4276.4,0.4427]
[1757198079704,0.9601359,4276.5,4276.4,0.9628]
[1757198083602,0.9601359,4276.5,4276.4,4.1706]
[1757198084098,0.9601359,4276.5,4276.4,3.4165]
[1757198084304,0.9601359,4276.5,4276.4,0.234]
[1757198086005,0.9601359,4276.5,4276.1,0.3057]
[1757198086205,0.711,4276.2,4276.1,0.5144]
[1757198086405,0.711,4276.2,4276.1,0.7484]
[1757198088404,0.3039,4276.1,4276.0,0.2087]
[1757198088612,0.3039,4276.1,4276.0,0.9628]
[1757198089009,0.3039,4276.1,4276.0,1.0842]
[1757198090701,0.7249,4276.1,4276.0,0.9628]
[1757198100912,0.7249,4276.1,4276.0,0.6571]
[1757198101112,0.7249,4276.1,4276.0,0.9641]
[1757198102110,0.2944,4276.9,4276.4,0.307]
[1757198102318,0.2944,4276.9,4276.0,4.58926]
[1757198102319,0.5457,4277.0,4276.9,0.7186]
[1757198102613,1.26029457,4277.0,4276.9,0.9526]
[1757198102814,1.55469457,4277.0,4276.9,0.9526]
[1757198104516,1.34259457,4277.0,4276.9,0.9526]
[1757198104822,0.12841031,4277.0,4276.9,0.9526]
[1757198105118,0.42281031,4277.0,4276.9,0.9526]
[1757198105516,0.63171031,4277.0,4276.9,0.9526]
[1757198105922,0.84381031,4277.0,4276.9,0.9526]
[1757198106119,0.96961031,4277.0,4276.9,0.9526]
[1757198106321,0.96961031,4277.0,4276.9,0.6456]
[1757198106617,0.96961031,4277.0,4276.9,0.9526]
[1757198109628,0.12841031,4277.0,4276.9,0.9526]
[1757198109830,0.2944,4277.6,4277.5,0.7186]
[1757198110029,0.42268241,4277.6,4277.5,0.9526]
[1757198110419,0.63158241,4277.6,4277.5,0.9526]
[1757198111129,0.84368241,4277.6,4277.5,0.9526]
[1757198111430,0.12828241,4277.6,4277.5,1.0737]
[1757198112125,0.63158241,4277.6,4277.5,1.0737]
[1757198112431,0.63158241,4277.6,4277.5,0.9526]
[1757198114620,0.84368241,4277.6,4277.5,0.9526]
[1757198115225,0.1212,4278.0,4277.5,1.0737]
[1757198115226,0.2944,4277.9,4277.5,1.0737]
[1757198115426,0.2944,4277.9,4277.8,0.307]
[1757198115626,0.63140104,4277.9,4277.8,0.7186]
[1757198116229,0.2089,4278.3,4278.2,0.4116]
[1757198116428,0.2089,4278.3,4278.2,0.9526]
[1757198116429,0.63135653,4278.3,4278.2,0.9526]
[1757198116629,0.5033,4278.3,4278.2,0.9526]
[1757198118025,0.7154,4278.3,4278.2,0.9526]
[1757198134138,0.7154,4278.3,4278.2,0.234]
[1757198134635,0.1279,4278.0,4277.8,3.2078]
[1757198134836,0.5512,4277.5,4277.4,0.203]
[1757198135042,0.8526,4277.5,4277.4,0.437]
[1757198135236,0.8526,4277.5,4277.4,0.9568]
[1757198137843,0.8526,4277.5,4277.4,0.638]
[1757198138644,0.8526,4277.5,4277.4,0.9568]
[1757198140048,0.8526,4277.5,4277.4,0.203]
[1757198140342,0.8526,4277.5,4277.4,0.7558]
[1757198140548,0.8526,4277.5,4277.4,0.437]
[1757198141446,0.8526,4277.5,4277.4,0.7558]
[1757198142749,0.8526,4277.5,4277.4,0.437]
[1757198142949,0.8526,4277.5,4277.4,0.7558]
[1757198143752,0.7247,4277.5,4277.4,0.9568]
[1757198147155,0.8526,4277.5,4277.4,0.9568]
[1757198151654,0.8526,4277.5,4277.4,0.638]
[1757198154060,0.8526,4277.5,4277.4,0.638]
[1757198158862,0.8526,4277.5,4277.4,0.9309]
[1757198160460,0.3014,4277.5,4277.4,0.9309]
[1757198160654,0.3334,4278.0,4277.9,0.194]
[1757198160858,0.95793371,4278.0,4277.9,0.428]
[1757198161161,1.54263687,4278.0,4277.9,0.428]
[1757198161362,1.54263687,4278.0,4277.9,0.7209]
[1757198163866,1.54263687,4278.0,4277.9,0.428]
[1757198165558,1.54263687,4278.0,4277.3,3.2078]
[1757198165759,0.1276,4276.5,4276.3,5.05465176]
[1757198165962,0.4082,4276.2,4276.1,3.4018]
[1757198166160,0.8187,4276.2,4276.1,3.6358]
[1757198167963,0.8187,4276.2,4276.1,3.4018]
[1757198168164,0.8187,4276.2,4276.1,3.6358]
[1757198168366,0.8187,4276.2,4276.1,3.4018]
[1757198168562,0.8187,4276.2,4276.1,0.428]
[1757198170070,0.8187,4276.2,4276.1,0.234]
[1757198177692,0.8187,4276.2,4276.1,0.428]
[1757198181994,0.7035,4275.8,4275.7,33.9714]
[1757198182198,0.7035,4275.8,4275.7,33.902]
[1757198184497,0.7035,4275.8,4275.7,34.2054]
[1757198186496,0.8204,4275.8,4275.7,34.2054]
[1757198195201,0.94860463,4275.8,4275.7,34.2054]
[1757198195905,0.94860463,4275.8,4275.7,33.9714]
[1757198196207,0.94860463,4275.8,4275.7,34.2054]
[1757198200009,0.94860463,4275.8,4275.7,0.7473]
[1757198201409,0.94860463,4275.8,4275.7,0.9416]
[1757198204107,1.53324263,4275.8,4275.7,0.9416]
[1757198205214,0.94860463,4275.8,4275.7,0.9416]
[1757198210719,0.94860463,4275.8,4275.7,0.7076]
[1757198211222,0.24510463,4275.8,4275.7,0.7076]
[1757198212119,0.54900463,4275.8,4275.7,0.7076]
[1757198212715,0.76110463,4275.8,4275.7,0.7076]
[1757198216720,0.96860463,4275.8,4275.7,0.7076]
[1757198216923,0.3039,4275.7,4275.5,0.234]
[1757198217128,0.4196,4275.2,4275.1,0.4383]
[1757198217320,0.85170463,4275.2,4275.1,0.4383]
[1757198218019,0.8514705,4275.2,4275.1,0.4383]
[1757198218422,0.9683705,4275.2,4275.1,0.4383]
[1757198220226,0.9683705,4275.2,4275.1,0.738]
[1757198220730,0.9683705,4275.2,4275.1,0.9486]
[1757198221324,0.9683705,4275.2,4274.5,3.3292]
[1757198221523,0.3332,4275.0,4274.6,0.234]
[1757198221729,0.7235,4274.9,4274.8,0.7146]
[1757198223424,0.4196,4274.9,4274.7,0.234]
[1757198223624,0.516,4274.8,4274.7,0.7443]
[1757198223826,0.516,4274.8,4274.7,0.9486]
[1757198224526,0.7235,4274.8,4274.7,0.9486]
[1757198225723,0.3039,4275.1,4275.0,0.5326]
[1757198225922,0.43179051,4275.1,4275.0,0.8323]
[1757198226222,0.64389051,4275.1,4275.0,0.8323]
[1757198226421,0.64389051,4275.1,4275.0,0.7146]
[1757198226836,0.516,4275.1,4275.0,0.7146]
[1757198229329,0.64391994,4275.1,4275.0,0.7146]
[1757198229829,0.516,4275.1,4275.0,0.7146]
[1757198230026,0.3039,4275.1,4275.0,0.7146]
[1757198230233,0.1169,4275.2,4275.1,0.7146]
[1757198230532,0.1169,4275.2,4275.1,0.9486]
[1757198230832,0.54871894,4275.2,4275.1,0.9486]
[1757198231831,0.76081894,4275.2,4275.1,0.9486]
[1757198236733,0.96831894,4275.2,4275.1,0.9486]
[1757198242839,0.24481894,4275.2,4275.1,1.18251]
[1757198243038,0.1169,4275.2,4275.1,1.18251]
[1757198244741,0.1169,4275.2,4275.1,0.9486]
[1757198246540,0.1169,4275.2,4275.1,4.9486]
[1757198246842,0.1169,4275.2,4275.1,0.9486]
[1757198267552,0.6326,4275.2,4275.1,0.9486]
[1757198269651,0.6326,4275.2,4275.1,0.7146]
[1757198269946,0.6326,4275.2,4275.1,0.9486]
[1757198274345,0.1169,4275.2,4275.1,0.9486]
[1757198276355,0.4122,4275.2,4275.1,0.9486]
[1757198278157,0.6205,4275.2,4275.1,0.9486]
[1757198285261,0.1169,4275.2,4275.1,0.9486]
[1757198286161,0.6205,4275.2,4275.1,0.9486]
[1757198286461,0.8322,4275.2,4275.1,0.9486]
[1757198287164,0.8322,4275.2,4275.0,3.2078]
[1757198287463,0.84332478,4275.1,4275.0,3.2078]
[1757198287652,0.84332478,4275.1,4275.0,3.4418]
[1757198288052,0.84332478,4275.1,4275.0,3.2078]
[1757198288257,0.84332478,4275.1,4275.0,3.4418]
[1757198288857,0.96022478,4275.1,4275.0,3.4418]
[1757198290366,0.8322,4275.1,4275.0,3.4418]
[1757198292160,0.8322,4275.1,4275.0,0.234]
[1757198292861,0.8322,4275.1,4275.0,0.4303]
[1757198294060,0.8322,4275.1,4275.0,0.234]
[1757198299167,0.8322,4275.1,4275.0,0.4303]
[1757198299375,0.8322,4275.1,4275.0,0.7475]
[1757198301472,0.8322,4275.1,4275.0,0.4303]
[1757198304888,0.8322,4275.1,4275.0,0.7475]
[1757198306388,0.8322,4275.1,4275.0,0.4303]
[1757198306586,0.8322,4275.1,4274.5,3.2078]
[1757198306587,0.7353,4274.6,4274.5,3.2078]
[1757198306894,0.7353,4274.6,4274.5,3.4418]
[1757198308077,0.8522,4274.6,4274.5,3.4418]
[1757198308487,0.8522,4274.6,4274.5,3.6478]
[1757198309283,0.8522,4274.6,4274.5,4.1592]
[1757198312296,0.4366,4274.6,4274.5,4.1592]
[1757198314695,0.6426,4274.6,4274.5,4.1592]
[1757198316189,0.8522,4274.6,4274.5,3.6478]
[1757198316390,0.8522,4274.6,4274.5,3.965]
[1757198318999,0.8522,4274.6,4274.5,4.1592]
[1757198330112,0.8522,4274.6,4274.5,0.9514]
[1757198331912,0.8522,4274.6,4274.5,0.7174]
[1757198332311,0.8522,4274.6,4274.5,0.9514]
[1757198334414,0.98022101,4274.6,4274.5,0.9514]
[1757198337619,1.56784767,4274.6,4274.5,0.9657]
[1757198338818,1.56784767,4274.6,4274.5,0.234]
[1757198339519,1.56784767,4274.6,4274.5,0.4326]
[1757198340415,1.56784767,4274.6,4274.5,0.9583]
[1757198344417,0.98022101,4274.6,4274.5,0.9583]
[1757198346125,0.98022101,4274.6,4274.5,0.6416]
[1757198346324,0.98022101,4274.6,4274.5,0.4326]
[1757198348222,0.3903,4274.2,4274.1,3.4064]
[1757198348524,0.6854,4274.2,4274.1,4.1661]
[1757198349627,0.6854,4274.2,4274.1,0.9583]
[1757198349819,0.8023,4274.2,4274.1,0.9583]
[1757198355327,0.8023,4274.2,4274.1,0.1986]
[1757198355532,0.93021337,4274.2,4274.1,0.7243]
[1757198357339,0.73541337,4274.2,4274.1,0.7243]
[1757198360139,0.94271337,4274.2,4274.1,0.7243]
[1757198362143,0.8148,4274.2,4274.1,0.7243]
[1757198363642,0.94276082,4274.2,4274.1,0.7243]
[1757198363843,0.94276082,4274.2,4274.1,0.7156]
[1757198364043,0.94275997,4274.2,4274.1,0.7156]
[1757198364245,0.94276032,4274.2,4274.1,0.7156]
[1757198364840,0.94277441,4274.2,4274.1,0.7156]
[1757198365040,0.8148,4274.2,4274.1,0.7156]
[1757198366249,0.9427892,4274.2,4274.1,0.7156]
[1757198367446,0.9428436,4274.2,4274.1,0.7156]
[1757198369949,0.9428436,4274.2,4274.1,0.4076]
[1757198370347,0.9428436,4274.2,4274.1,0.1986]
[1757198370950,0.6477436,4274.2,4273.6,3.5158]
[1757198371152,0.8528436,4274.1,4274.0,0.4299]
[1757198371948,0.8528436,4274.1,4274.0,0.7379]
[1757198374750,0.8528436,4274.1,4274.0,0.9494]
[1757198375755,0.9697436,4274.1,4274.0,0.9494]
[1757198379757,0.2449436,4274.1,4274.0,1.30387]
[1757198380057,0.2449436,4274.1,4274.0,5.30387]
[1757198380058,0.1169,4274.1,4274.0,5.30387]
[1757198381546,0.6344,4274.1,4274.0,0.7154]
[1757198381855,0.8417,4274.1,4274.0,0.4299]
[1757198385754,0.4194,4273.8,4273.6,3.2078]
[1757198385957,0.3054,4273.7,4273.6,3.2078]
[1757198386161,0.7248,4273.7,4273.6,3.4418]
[1757198386361,0.85281332,4273.7,4273.6,3.4418]
[1757198387257,0.85281332,4273.7,4273.6,3.2078]
[1757198388358,0.538,4273.5,4273.4,0.234]
[1757198388555,0.8434,4273.5,4273.4,0.234]
[1757198388753,0.8434,4273.5,4273.4,0.4299]
[1757198390361,0.8434,4273.5,4273.4,0.234]
[1757198391260,0.8434,4273.5,4273.4,0.4365]
[1757198391460,0.8434,4273.5,4273.4,0.7386]
[1757198393967,0.8434,4273.5,4273.4,0.4365]
[1757198398266,0.9604,4273.5,4273.4,0.4365]
[1757198401671,0.9604,4273.5,4273.4,0.234]
[1757198403471,0.9604,4273.5,4273.4,0.4365]
[1757198408176,0.9604,4273.5,4273.4,0.234]
[1757198409279,0.8272,4273.0,4272.9,0.2025]
[1757198409476,0.8272,4273.0,4272.9,0.7386]
[1757198409878,0.8272,4273.0,4272.9,0.9509]
[1757198412176,0.8272,4273.0,4272.9,0.7169]
[1757198412378,0.8272,4273.0,4272.9,0.9509]
[1757198413990,0.7092,4273.0,4272.9,0.9509]
[1757198414190,0.5082,4273.0,4272.9,0.9509]
[1757198415590,0.3105,4273.4,4272.9,0.6488]
[1757198415792,0.44111303,4273.3,4273.2,0.4148]
[1757198415996,0.44111303,4273.3,4273.2,0.9509]
[1757198417196,0.63881303,4273.3,4273.2,0.9509]
[1757198420796,0.5082,4273.3,4273.2,0.9509]
[1757198421299,0.4286,4273.5,4273.4,0.7019]
[1757198421495,0.76005202,4273.5,4273.4,0.7019]
[1757198422200,0.95695202,4273.5,4273.4,0.7019]
[1757198422501,1.07525202,4273.5,4273.4,0.7019]
[1757198423693,0.76005202,4273.5,4273.4,0.7019]
[1757198423892,0.117,4273.5,4273.4,0.7019]
[1757198424298,0.4286,4273.5,4273.4,0.7019]
[1757198426093,0.117,4273.5,4273.4,0.7019]
[1757198426400,0.4286,4273.5,4273.4,0.7019]
[1757198426603,0.117,4273.5,4273.4,0.7019]
[1757198427700,0.117,4273.5,4273.4,4.7019]
[1757198428899,0.117,4273.5,4273.4,0.7019]
[1757198431096,0.117,4273.5,4273.4,0.9359]
[1757198442712,0.4286,4273.5,4273.4,0.9359]
[1757198443210,0.117,4273.5,4273.4,0.9359]
[1757198458605,0.3018,4274.3,4273.6,0.314]
[1757198458807,0.3018,4274.3,4274.2,0.7238]
[1757198459006,0.1306698,4274.3,4274.2,0.9578]
[1757198459407,0.3018,4274.9,4274.3,0.314]
[1757198459608,1.1172494,4274.8,4274.7,0.1999]
[1757198459910,0.83941775,4274.8,4274.7,0.4339]
[1757198463410,0.64401775,4274.8,4274.7,0.9578]
[1757198463611,0.1169,4275.2,4274.8,0.314]
[1757198463814,0.4187,4275.2,4275.1,0.7238]